[Event "Titled Tuesday Blitz November 15 Early 2022"]
[White "Wagner, Dennis"]
[Black "Gonzalez, Francisco Silva"]
[WhiteFideId "24650684"]
[BlackFideId "1512285"]
[WhiteElo "2470"]
[BlackElo "2159"]
[Result "1-0"]
[Round "06"]
[TimeControl "180+1"]
[Date "2022.11.16"]
[WhiteClock "0:00:03"]
[BlackClock "0:00:05"]

1. d4 {[%clk 0:03:00]}  Nf6 {[%clk 0:02:55]} 2. Nf3 {[%clk 0:02:58]}  d5 {[%clk 0:02:53]} 3. c4 {[%clk 0:02:58]}  e6 {[%clk 0:02:52]} 4. g3 {[%clk 0:02:58]}  dxc4 {[%clk 0:02:52]} 5. Bg2 {[%clk 0:02:58]}  Nc6 {[%clk 0:02:51]} 6. Qa4 {[%clk 0:02:57]}  Bb4+ {[%clk 0:02:51]} 7. Bd2 {[%clk 0:02:57]}  Nd5 {[%clk 0:02:51]} 8. Qb5 {[%clk 0:02:43]}  Bxd2+ {[%clk 0:02:50]} 9. Nbxd2 {[%clk 0:02:44]}  c3 {[%clk 0:02:51]} 10. bxc3 {[%clk 0:02:45]}  Nxc3 {[%clk 0:02:52]} 11. Qb3 {[%clk 0:02:41]}  Nd5 {[%clk 0:02:50]} 12. O-O {[%clk 0:02:41]}  O-O {[%clk 0:02:49]} 13. Rfc1 {[%clk 0:02:42]}  a5 {[%clk 0:02:46]} 14. a3 {[%clk 0:02:32]}  Ra7 {[%clk 0:02:43]} 15. Rab1 {[%clk 0:02:26]}  Nf6 {[%clk 0:02:40]} 16. e3 {[%clk 0:02:23]}  Bd7 {[%clk 0:02:38]} 17. Nc4 {[%clk 0:02:09]}  b6 {[%clk 0:02:34]} 18. Nfe5 {[%clk 0:02:06]}  Nxe5 {[%clk 0:02:33]} 19. Nxe5 {[%clk 0:02:05]}  Qe7 {[%clk 0:02:33]} 20. Bc6 {[%clk 0:01:55]}  Qd6 {[%clk 0:02:30]} 21. Bxd7 {[%clk 0:00:56]}  Nxd7 {[%clk 0:02:29]} 22. Rc6 {[%clk 0:00:49]}  Qe7 {[%clk 0:02:27]} 23. Nxd7 {[%clk 0:00:47]}  Qxd7 {[%clk 0:02:26]} 24. Rbc1 {[%clk 0:00:47]}  g6 {[%clk 0:02:25]} 25. Qc4 {[%clk 0:00:42]}  Qe7 {[%clk 0:02:25]} 26. a4 {[%clk 0:00:39]}  Qa3 {[%clk 0:02:25]} 27. h4 {[%clk 0:00:35]}  h5 {[%clk 0:02:24]} 28. Kg2 {[%clk 0:00:34]}  Kg7 {[%clk 0:02:00]} 29. Qb5 {[%clk 0:00:21]}  Kg8 {[%clk 0:00:43]} 30. R1c4 {[%clk 0:00:20]}  Rd8 {[%clk 0:00:38]} 31. Qe5 {[%clk 0:00:12]}  Rd7 {[%clk 0:00:34]} 32. e4 {[%clk 0:00:06]}  Qe7 {[%clk 0:00:31]} 33. Qf4 {[%clk 0:00:04]}  Kg7 {[%clk 0:00:27]} 34. Qe5+ {[%clk 0:00:04]}  Kg8 {[%clk 0:00:27]} 35. Qf4 {[%clk 0:00:04]}  Kg7 {[%clk 0:00:26]} 36. Qe3 {[%clk 0:00:05]}  Ra8 {[%clk 0:00:24]} 37. Qc3 {[%clk 0:00:05]}  Ra7 {[%clk 0:00:23]} 38. d5+ {[%clk 0:00:05]}  Kg8 {[%clk 0:00:23]} 39. dxe6 {[%clk 0:00:05]}  fxe6 {[%clk 0:00:23]} 40. Qe5 {[%clk 0:00:06]}  Kf7 {[%clk 0:00:19]} 41. Qf4+ {[%clk 0:00:06]}  Kg7 {[%clk 0:00:19]} 42. Rc3 {[%clk 0:00:05]}  e5 {[%clk 0:00:18]} 43. Qe3 {[%clk 0:00:05]}  Rd6 {[%clk 0:00:16]} 44. R3c4 {[%clk 0:00:04]}  Rxc6 {[%clk 0:00:16]} 45. Rxc6 {[%clk 0:00:05]}  Ra8 {[%clk 0:00:16]} 46. Qc3 {[%clk 0:00:05]}  Rc8 {[%clk 0:00:15]} 47. f4 {[%clk 0:00:05]}  Kh6 {[%clk 0:00:13]} 48. f5 {[%clk 0:00:05]}  Kh7 {[%clk 0:00:13]} 49. fxg6+ {[%clk 0:00:05]}  Kh6 {[%clk 0:00:13]} 50. Qd2+ {[%clk 0:00:05]}  Kg7 {[%clk 0:00:14]} 51. Qc3 {[%clk 0:00:05]}  Kh6 {[%clk 0:00:13]} 52. Kh2 {[%clk 0:00:06]}  Rf8 {[%clk 0:00:13]} 53. Qc1+ {[%clk 0:00:05]}  Rf4 {[%clk 0:00:11]} 54. Rxc7 {[%clk 0:00:04]}  Qf6 {[%clk 0:00:08]} 55. Rc6 {[%clk 0:00:04]}  Qe7 {[%clk 0:00:07]} 56. Kg2 {[%clk 0:00:05]}  Qa3 {[%clk 0:00:06]} 57. Qxa3 {[%clk 0:00:04]}  Rf3 {[%clk 0:00:05]} 58. Qxf3 {[%clk 0:00:03]} 1-0


[Site "https://www.chess.com"]

[Event "Titled Tuesday Blitz November 15 Early 2022"]
[White "Zaichenko, Daria"]
[Black "Aggelis, Nikolaos"]
[WhiteFideId "4197453"]
[BlackFideId "4213220"]
[WhiteElo "2039"]
[BlackElo "2189"]
[Result "0-1"]
[Round "06"]
[TimeControl "180+1"]
[Date "2022.11.16"]
[WhiteClock "0:00:09"]
[BlackClock "0:00:30"]

1. e4 {[%clk 0:03:00]}  c6 {[%clk 0:02:57]} 2. d4 {[%clk 0:03:00]}  d5 {[%clk 0:02:55]} 3. Nc3 {[%clk 0:03:00]}  dxe4 {[%clk 0:02:55]} 4. Nxe4 {[%clk 0:03:00]}  Nf6 {[%clk 0:02:55]} 5. Nxf6+ {[%clk 0:03:00]}  exf6 {[%clk 0:02:56]} 6. c3 {[%clk 0:03:00]}  Bd6 {[%clk 0:02:56]} 7. Bd3 {[%clk 0:03:00]}  O-O {[%clk 0:02:55]} 8. Be3 {[%clk 0:03:00]}  Re8 {[%clk 0:02:50]} 9. Qc2 {[%clk 0:03:00]}  h5 {[%clk 0:02:49]} 10. O-O-O {[%clk 0:03:00]}  b5 {[%clk 0:02:46]} 11. Kb1 {[%clk 0:02:59]}  a5 {[%clk 0:02:47]} 12. h3 {[%clk 0:02:57]}  a4 {[%clk 0:02:43]} 13. g4 {[%clk 0:02:55]}  h4 {[%clk 0:02:42]} 14. Bc1 {[%clk 0:02:45]}  Be6 {[%clk 0:02:28]} 15. f4 {[%clk 0:02:44]}  Bd5 {[%clk 0:02:26]} 16. Rh2 {[%clk 0:02:43]}  Qc7 {[%clk 0:02:24]} 17. Ne2 {[%clk 0:02:38]}  Bf3 {[%clk 0:02:20]} 18. Rf2 {[%clk 0:02:36]}  Bxe2 {[%clk 0:02:14]} 19. Rxe2 {[%clk 0:02:36]}  Nd7 {[%clk 0:02:15]} 20. Rxe8+ {[%clk 0:02:31]}  Rxe8 {[%clk 0:02:15]} 21. Qf2 {[%clk 0:02:31]}  Nb6 {[%clk 0:02:13]} 22. Qxh4 {[%clk 0:02:28]}  g6 {[%clk 0:02:13]} 23. g5 {[%clk 0:02:22]}  f5 {[%clk 0:02:06]} 24. Rg1 {[%clk 0:02:20]}  Nd5 {[%clk 0:02:01]} 25. Bxf5 {[%clk 0:02:17]}  Bxf4 {[%clk 0:02:00]} 26. Bd3 {[%clk 0:01:38]}  Bxc1 {[%clk 0:01:54]} 27. Rxc1 {[%clk 0:01:36]}  Re3 {[%clk 0:01:52]} 28. Be4 {[%clk 0:01:24]}  a3 {[%clk 0:01:46]} 29. Bxd5 {[%clk 0:01:22]}  cxd5 {[%clk 0:01:47]} 30. Qf2 {[%clk 0:01:19]}  Qe7 {[%clk 0:01:38]} 31. b3 {[%clk 0:00:55]}  Re2 {[%clk 0:01:35]} 32. Qf3 {[%clk 0:00:52]}  Re1 {[%clk 0:00:47]} 33. Kc2 {[%clk 0:00:15]}  Rxc1+ {[%clk 0:00:40]} 34. Kxc1 {[%clk 0:00:15]}  Qxg5+ {[%clk 0:00:41]} 35. Kc2 {[%clk 0:00:15]}  Qg1 {[%clk 0:00:36]} 36. Qxd5 {[%clk 0:00:13]}  Qf2+ {[%clk 0:00:35]} 37. Kd3 {[%clk 0:00:12]}  Qxa2 {[%clk 0:00:35]} 38. Qxb5 {[%clk 0:00:11]}  Qb1+ {[%clk 0:00:34]} 39. Ke3 {[%clk 0:00:09]}  a2 {[%clk 0:00:29]} 40. Qb8+ {[%clk 0:00:09]}  Kh7 {[%clk 0:00:29]} 41. Qf4 {[%clk 0:00:08]}  Qc1+ {[%clk 0:00:28]} 42. Ke4 {[%clk 0:00:08]}  Qxf4+ {[%clk 0:00:29]} 43. Kxf4 {[%clk 0:00:09]}  a1=Q {[%clk 0:00:30]} 0-1


[Site "https://www.chess.com"]

[Event "Titled Tuesday Blitz November 15 Early 2022"]
[White "Acor, Corey"]
[Black "Besedes, Danilo"]
[WhiteFideId "2024861"]
[BlackFideId "946796"]
[WhiteElo "2340"]
[BlackElo "2352"]
[Result "1-0"]
[Round "07"]
[TimeControl "180+1"]
[Date "2022.11.16"]
[WhiteClock "0:00:10"]
[BlackClock "0:00:13"]

1. e4 {[%clk 0:03:00]}  e6 {[%clk 0:02:58]} 2. d3 {[%clk 0:02:59]}  d5 {[%clk 0:02:58]} 3. Nd2 {[%clk 0:03:00]}  Nc6 {[%clk 0:02:58]} 4. g3 {[%clk 0:02:59]}  Nf6 {[%clk 0:02:58]} 5. Bg2 {[%clk 0:02:58]}  e5 {[%clk 0:02:58]} 6. Ngf3 {[%clk 0:02:57]}  Bc5 {[%clk 0:02:58]} 7. O-O {[%clk 0:02:52]}  O-O {[%clk 0:02:57]} 8. b3 {[%clk 0:02:48]}  Re8 {[%clk 0:02:56]} 9. Bb2 {[%clk 0:02:48]}  a5 {[%clk 0:02:56]} 10. a3 {[%clk 0:02:43]}  Bg4 {[%clk 0:02:55]} 11. h3 {[%clk 0:02:42]}  Bh5 {[%clk 0:02:54]} 12. exd5 {[%clk 0:02:32]}  Nxd5 {[%clk 0:02:54]} 13. Re1 {[%clk 0:02:27]}  f6 {[%clk 0:02:54]} 14. Ne4 {[%clk 0:02:21]}  Bf8 {[%clk 0:02:49]} 15. Qd2 {[%clk 0:02:13]}  Qd7 {[%clk 0:02:41]} 16. g4 {[%clk 0:02:13]}  Bf7 {[%clk 0:02:39]} 17. d4 {[%clk 0:02:07]}  exd4 {[%clk 0:02:26]} 18. Nxd4 {[%clk 0:02:08]}  Rad8 {[%clk 0:02:17]} 19. Nxc6 {[%clk 0:02:02]}  Qxc6 {[%clk 0:02:18]} 20. Rad1 {[%clk 0:01:54]}  Be7 {[%clk 0:01:57]} 21. Ng3 {[%clk 0:01:48]}  Qc5 {[%clk 0:01:29]} 22. Qc1 {[%clk 0:01:47]}  c6 {[%clk 0:01:20]} 23. Nf5 {[%clk 0:01:47]}  Bf8 {[%clk 0:01:20]} 24. Rxe8 {[%clk 0:01:37]}  Rxe8 {[%clk 0:01:21]} 25. c4 {[%clk 0:01:21]}  Nc7 {[%clk 0:01:20]} 26. Rd7 {[%clk 0:01:10]}  Ne6 {[%clk 0:01:02]} 27. Rxb7 {[%clk 0:01:09]}  Ng5 {[%clk 0:00:48]} 28. Kf1 {[%clk 0:00:43]}  a4 {[%clk 0:00:44]} 29. Bd4 {[%clk 0:00:39]}  Qxa3 {[%clk 0:00:43]} 30. Qxa3 {[%clk 0:00:39]}  Bxa3 {[%clk 0:00:43]} 31. Bxc6 {[%clk 0:00:38]}  Rc8 {[%clk 0:00:38]} 32. Bxa4 {[%clk 0:00:37]}  Ne4 {[%clk 0:00:35]} 33. Ne7+ {[%clk 0:00:28]}  Bxe7 {[%clk 0:00:35]} 34. Rxe7 {[%clk 0:00:29]}  Nd2+ {[%clk 0:00:27]} 35. Ke2 {[%clk 0:00:27]}  Nb1 {[%clk 0:00:18]} 36. Bb2 {[%clk 0:00:21]}  Rd8 {[%clk 0:00:17]} 37. Rd7 {[%clk 0:00:20]}  Rb8 {[%clk 0:00:14]} 38. Kd3 {[%clk 0:00:16]}  Bg6+ {[%clk 0:00:13]} 39. Ke2 {[%clk 0:00:16]}  Bf7 {[%clk 0:00:12]} 40. Kd1 {[%clk 0:00:11]}  Bg6 {[%clk 0:00:12]} 41. Kc1 {[%clk 0:00:10]}  Re8 {[%clk 0:00:12]} 42. Rxg7+ {[%clk 0:00:08]}  Kxg7 {[%clk 0:00:11]} 43. Bxe8 {[%clk 0:00:09]}  Bxe8 {[%clk 0:00:11]} 44. Kxb1 {[%clk 0:00:09]}  Bc6 {[%clk 0:00:11]} 45. g5 {[%clk 0:00:08]}  Kf7 {[%clk 0:00:10]} 46. Bxf6 {[%clk 0:00:09]}  Bg2 {[%clk 0:00:09]} 47. h4 {[%clk 0:00:09]}  Ke6 {[%clk 0:00:10]} 48. Kc2 {[%clk 0:00:08]}  Kd6 {[%clk 0:00:10]} 49. Kc3 {[%clk 0:00:09]}  Kc5 {[%clk 0:00:11]} 50. b4+ {[%clk 0:00:08]}  Kc6 {[%clk 0:00:12]} 51. b5+ {[%clk 0:00:07]}  Kb6 {[%clk 0:00:12]} 52. Bd4+ {[%clk 0:00:08]}  Ka5 {[%clk 0:00:12]} 53. Kd3 {[%clk 0:00:08]}  Bf1+ {[%clk 0:00:13]} 54. Kc3 {[%clk 0:00:09]}  Be2 {[%clk 0:00:12]} 55. Bf6 {[%clk 0:00:09]}  Bg4 {[%clk 0:00:12]} 56. Bd8+ {[%clk 0:00:10]}  Ka4 {[%clk 0:00:12]} 57. b6 {[%clk 0:00:09]}  Bf3 {[%clk 0:00:12]} 58. Kd4 {[%clk 0:00:09]}  Ka5 {[%clk 0:00:12]} 59. c5 {[%clk 0:00:09]}  Ka6 {[%clk 0:00:13]} 60. Be7 {[%clk 0:00:10]}  Kb7 {[%clk 0:00:12]} 61. Ke5 {[%clk 0:00:10]}  Kc6 {[%clk 0:00:12]} 62. Kf6 {[%clk 0:00:11]}  Be4 {[%clk 0:00:12]} 63. h5 {[%clk 0:00:11]}  Kd7 {[%clk 0:00:13]} 64. g6 {[%clk 0:00:10]}  hxg6 {[%clk 0:00:13]} 65. hxg6 {[%clk 0:00:11]}  Bd5 {[%clk 0:00:13]} 66. g7 {[%clk 0:00:10]}  Ke8 {[%clk 0:00:12]} 67. b7 {[%clk 0:00:09]}  Kd7 {[%clk 0:00:13]} 68. b8=Q {[%clk 0:00:08]}  Bg8 {[%clk 0:00:13]} 69. Qd6+ {[%clk 0:00:08]}  Kc8 {[%clk 0:00:13]} 70. Qc6+ {[%clk 0:00:08]}  Kb8 {[%clk 0:00:13]} 71. Bd6+ {[%clk 0:00:08]}  Ka7 {[%clk 0:00:13]} 72. Qb6+ {[%clk 0:00:09]}  Ka8 {[%clk 0:00:13]} 73. Qb8# {[%clk 0:00:10]} 1-0


[Site "https://www.chess.com"]

[Event "Titled Tuesday Blitz November 15 Early 2022"]
[White "Al-Tarboush, Ward"]
[Black "Zanette, Edgard Vinicius"]
[WhiteFideId "7601450"]
[BlackFideId "2109263"]
[WhiteElo "2273"]
[BlackElo "2211"]
[Result "0-1"]
[Round "07"]
[TimeControl "180+1"]
[Date "2022.11.16"]
[WhiteClock "0:00:57"]
[BlackClock "0:00:23"]

1. e4 {[%clk 0:02:57]}  c5 {[%clk 0:02:59]} 2. Nf3 {[%clk 0:02:57]}  d6 {[%clk 0:02:59]} 3. d4 {[%clk 0:02:58]}  cxd4 {[%clk 0:03:00]} 4. Nxd4 {[%clk 0:02:59]}  Nf6 {[%clk 0:03:00]} 5. Nc3 {[%clk 0:02:59]}  a6 {[%clk 0:03:00]} 6. h3 {[%clk 0:03:00]}  e5 {[%clk 0:02:57]} 7. Nde2 {[%clk 0:03:00]}  Be7 {[%clk 0:02:56]} 8. g4 {[%clk 0:02:59]}  h6 {[%clk 0:02:57]} 9. Bg2 {[%clk 0:02:59]}  Nbd7 {[%clk 0:02:44]} 10. O-O {[%clk 0:02:58]}  Nc5 {[%clk 0:02:44]} 11. Ng3 {[%clk 0:02:58]}  b5 {[%clk 0:02:02]} 12. Nf5 {[%clk 0:02:57]}  Bxf5 {[%clk 0:02:01]} 13. exf5 {[%clk 0:02:58]}  Rc8 {[%clk 0:01:58]} 14. Be3 {[%clk 0:02:57]}  b4 {[%clk 0:01:46]} 15. Nd5 {[%clk 0:02:55]}  Nxd5 {[%clk 0:01:43]} 16. Qxd5 {[%clk 0:02:56]}  Qc7 {[%clk 0:01:30]} 17. Rad1 {[%clk 0:02:54]}  O-O {[%clk 0:01:27]} 18. Kh1 {[%clk 0:02:50]}  Na4 {[%clk 0:01:22]} 19. Rd2 {[%clk 0:02:42]}  Nxb2 {[%clk 0:01:20]} 20. f4 {[%clk 0:02:20]}  Nc4 {[%clk 0:01:14]} 21. Re2 {[%clk 0:02:20]}  Nxe3 {[%clk 0:01:13]} 22. Rxe3 {[%clk 0:02:21]}  exf4 {[%clk 0:01:13]} 23. Rd3 {[%clk 0:02:16]}  Qxc2 {[%clk 0:01:02]} 24. Be4 {[%clk 0:02:04]}  Qc4 {[%clk 0:00:56]} 25. f6 {[%clk 0:01:42]}  Qxd5 {[%clk 0:00:52]} 26. Rxd5 {[%clk 0:01:30]}  Bxf6 {[%clk 0:00:51]} 27. Rxd6 {[%clk 0:01:30]}  a5 {[%clk 0:00:49]} 28. Ra6 {[%clk 0:01:29]}  Rc5 {[%clk 0:00:48]} 29. Kg2 {[%clk 0:01:21]}  Bg5 {[%clk 0:00:41]} 30. Bb1 {[%clk 0:01:18]}  g6 {[%clk 0:00:39]} 31. Ra7 {[%clk 0:01:18]}  Rd8 {[%clk 0:00:38]} 32. h4 {[%clk 0:01:17]}  Rd2+ {[%clk 0:00:36]} 33. Kg1 {[%clk 0:01:01]}  Bxh4 {[%clk 0:00:34]} 34. Ra8+ {[%clk 0:00:59]}  Kg7 {[%clk 0:00:34]} 35. Rxf4 {[%clk 0:01:00]}  Rc1+ {[%clk 0:00:34]} 36. Rf1 {[%clk 0:01:00]}  Bf2+ {[%clk 0:00:30]} 37. Kg2 {[%clk 0:00:59]}  Be3+ {[%clk 0:00:27]} 38. Kf3 {[%clk 0:00:57]}  Rxf1+ {[%clk 0:00:26]} 39. Kxe3 {[%clk 0:00:57]}  Rd7 {[%clk 0:00:23]} 0-1


[Site "https://www.chess.com"]

[Event "Titled Tuesday Blitz November 15 Early 2022"]
[White "Alekseenko, Kirill"]
[Black "Zemlyanskii, Ivan"]
[WhiteFideId "4135539"]
[BlackFideId "24249971"]
[WhiteElo "2682"]
[BlackElo "2107"]
[Result "1-0"]
[Round "07"]
[TimeControl "180+1"]
[Date "2022.11.15"]
[WhiteClock "0:00:41"]
[BlackClock "0:00:02"]

1. e4 {[%clk 0:01:57]}  c5 {[%clk 0:02:58]} 2. Nf3 {[%clk 0:01:57]}  d6 {[%clk 0:02:59]} 3. d4 {[%clk 0:01:58]}  cxd4 {[%clk 0:02:59]} 4. Nxd4 {[%clk 0:01:58]}  Nf6 {[%clk 0:03:00]} 5. Nc3 {[%clk 0:01:59]}  a6 {[%clk 0:03:00]} 6. Be2 {[%clk 0:02:00]}  e5 {[%clk 0:03:00]} 7. Nb3 {[%clk 0:01:59]}  Be7 {[%clk 0:02:58]} 8. O-O {[%clk 0:01:59]}  O-O {[%clk 0:02:57]} 9. Kh1 {[%clk 0:01:59]}  b6 {[%clk 0:02:40]} 10. Bg5 {[%clk 0:01:57]}  Nbd7 {[%clk 0:02:38]} 11. a4 {[%clk 0:01:55]}  Bb7 {[%clk 0:02:38]} 12. f3 {[%clk 0:01:55]}  Rc8 {[%clk 0:02:24]} 13. Qd2 {[%clk 0:01:50]}  Qc7 {[%clk 0:02:18]} 14. Rfd1 {[%clk 0:01:45]}  Rfe8 {[%clk 0:02:12]} 15. Qe1 {[%clk 0:01:40]}  h6 {[%clk 0:01:52]} 16. Be3 {[%clk 0:01:40]}  Nh5 {[%clk 0:01:38]} 17. Qf2 {[%clk 0:01:36]}  Nf4 {[%clk 0:01:35]} 18. Bf1 {[%clk 0:01:37]}  Ne6 {[%clk 0:01:26]} 19. Qe1 {[%clk 0:01:23]}  Nf6 {[%clk 0:01:16]} 20. Qf2 {[%clk 0:01:19]}  Nd7 {[%clk 0:01:10]} 21. Qg1 {[%clk 0:01:20]}  Bg5 {[%clk 0:00:52]} 22. Bf2 {[%clk 0:01:19]}  Be7 {[%clk 0:00:47]} 23. Nc1 {[%clk 0:01:15]}  Bd8 {[%clk 0:00:23]} 24. Nd3 {[%clk 0:01:13]}  Ndc5 {[%clk 0:00:16]} 25. Nb4 {[%clk 0:01:13]}  Bg5 {[%clk 0:00:14]} 26. Nbd5 {[%clk 0:01:10]}  Qd8 {[%clk 0:00:12]} 27. Ra3 {[%clk 0:01:07]}  Bf6 {[%clk 0:00:07]} 28. Nxf6+ {[%clk 0:01:03]}  gxf6 {[%clk 0:00:08]} 29. Be3 {[%clk 0:00:57]}  Kh7 {[%clk 0:00:08]} 30. Qf2 {[%clk 0:00:58]}  Rg8 {[%clk 0:00:07]} 31. Raa1 {[%clk 0:00:49]}  Qe7 {[%clk 0:00:06]} 32. Nd5 {[%clk 0:00:49]}  Bxd5 {[%clk 0:00:06]} 33. Rxd5 {[%clk 0:00:50]}  Qc7 {[%clk 0:00:02]} 34. b3 {[%clk 0:00:46]}  Rcd8 {[%clk 0:00:02]} 35. Rad1 {[%clk 0:00:45]}  Nd7 {[%clk 0:00:01]} 36. Rxd6 {[%clk 0:00:44]}  Ndc5 {[%clk 0:00:02]} 37. R6d5 {[%clk 0:00:41]} 1-0


[Site "https://www.chess.com"]

[Event "Titled Tuesday Blitz November 15 Early 2022"]
[White "Alfaro, William"]
[Black "Lohani, Sujana"]
[WhiteFideId "6100457"]
[BlackFideId "12311987"]
[WhiteElo "2096"]
[BlackElo "1691"]
[Result "1-0"]
[Round "07"]
[TimeControl "180+1"]
[Date "2022.11.16"]
[WhiteClock "0:01:10"]
[BlackClock "0:00:03"]

1. e4 {[%clk 0:02:59]}  g6 {[%clk 0:02:58]} 2. d4 {[%clk 0:02:57]}  Bg7 {[%clk 0:02:59]} 3. Nc3 {[%clk 0:02:52]}  d6 {[%clk 0:03:00]} 4. Be3 {[%clk 0:02:45]}  c6 {[%clk 0:02:53]} 5. Qd2 {[%clk 0:02:38]}  b5 {[%clk 0:02:52]} 6. a3 {[%clk 0:02:35]}  a6 {[%clk 0:02:49]} 7. f3 {[%clk 0:02:34]}  Nd7 {[%clk 0:02:48]} 8. g4 {[%clk 0:02:32]}  Qb6 {[%clk 0:02:39]} 9. h4 {[%clk 0:02:23]}  h5 {[%clk 0:02:37]} 10. g5 {[%clk 0:02:12]}  e6 {[%clk 0:02:34]} 11. d5 {[%clk 0:02:10]}  c5 {[%clk 0:02:28]} 12. dxe6 {[%clk 0:02:09]}  fxe6 {[%clk 0:02:27]} 13. O-O-O {[%clk 0:02:08]}  Ke7 {[%clk 0:02:12]} 14. Nh3 {[%clk 0:02:04]}  Ne5 {[%clk 0:02:10]} 15. Be2 {[%clk 0:02:03]}  Rb8 {[%clk 0:01:51]} 16. f4 {[%clk 0:02:03]}  Nc4 {[%clk 0:01:50]} 17. Bxc4 {[%clk 0:01:38]}  bxc4 {[%clk 0:01:50]} 18. b4 {[%clk 0:01:34]}  cxb3 {[%clk 0:01:42]} 19. cxb3 {[%clk 0:01:24]}  Kf7 {[%clk 0:01:20]} 20. b4 {[%clk 0:01:14]}  Ne7 {[%clk 0:00:53]} 21. f5 {[%clk 0:01:14]}  gxf5 {[%clk 0:00:48]} 22. exf5 {[%clk 0:01:14]}  Nxf5 {[%clk 0:00:48]} 23. g6+ {[%clk 0:01:14]}  Ke8 {[%clk 0:00:19]} 24. Ne4 {[%clk 0:01:14]}  Nxe3 {[%clk 0:00:07]} 25. Nxd6+ {[%clk 0:01:10]}  Ke7 {[%clk 0:00:03]} 26. Qxe3 {[%clk 0:01:10]} 1-0


[Site "https://www.chess.com"]

[Event "Titled Tuesday Blitz November 15 Early 2022"]
[White "Ardila, Oscar Humberto"]
[Black "Arbunic Castro, Giovanna"]
[WhiteFideId "4404742"]
[BlackFideId "3400549"]
[WhiteElo "1959"]
[BlackElo "1884"]
[Result "0-1"]
[Round "07"]
[TimeControl "180+1"]
[Date "2022.11.16"]
[WhiteClock "0:00:56"]
[BlackClock "0:00:45"]

1. d4 {[%clk 0:03:00]}  Nf6 {[%clk 0:02:57]} 2. c4 {[%clk 0:03:00]}  g6 {[%clk 0:02:56]} 3. Nc3 {[%clk 0:03:00]}  Bg7 {[%clk 0:02:56]} 4. Nf3 {[%clk 0:03:00]}  O-O {[%clk 0:02:55]} 5. e3 {[%clk 0:03:00]}  d6 {[%clk 0:02:53]} 6. Be2 {[%clk 0:03:01]}  c5 {[%clk 0:02:53]} 7. O-O {[%clk 0:02:59]}  Nc6 {[%clk 0:02:51]} 8. b3 {[%clk 0:02:56]}  Bg4 {[%clk 0:02:41]} 9. Bb2 {[%clk 0:02:56]}  Nd7 {[%clk 0:02:26]} 10. dxc5 {[%clk 0:02:47]}  dxc5 {[%clk 0:02:19]} 11. h3 {[%clk 0:02:46]}  Bxf3 {[%clk 0:02:10]} 12. Bxf3 {[%clk 0:02:46]}  Nde5 {[%clk 0:02:09]} 13. Be2 {[%clk 0:02:42]}  Qa5 {[%clk 0:02:02]} 14. Rc1 {[%clk 0:02:38]}  Rad8 {[%clk 0:02:00]} 15. Qc2 {[%clk 0:02:37]}  Nb4 {[%clk 0:01:37]} 16. Qb1 {[%clk 0:02:37]}  Nbd3 {[%clk 0:01:32]} 17. Rc2 {[%clk 0:02:31]}  Nxb2 {[%clk 0:01:26]} 18. Qxb2 {[%clk 0:02:28]}  Nd3 {[%clk 0:01:25]} 19. Bxd3 {[%clk 0:02:29]}  Rxd3 {[%clk 0:01:24]} 20. Rfc1 {[%clk 0:02:27]}  Rfd8 {[%clk 0:01:22]} 21. Kh2 {[%clk 0:02:24]}  Rxc3 {[%clk 0:01:14]} 22. Rxc3 {[%clk 0:02:24]}  Rd3 {[%clk 0:01:14]} 23. b4 {[%clk 0:01:23]}  cxb4 {[%clk 0:01:10]} 24. Rxd3 {[%clk 0:00:58]}  Bxb2 {[%clk 0:01:07]} 25. Rc2 {[%clk 0:00:58]}  Bc3 {[%clk 0:00:56]} 26. Rd7 {[%clk 0:00:57]}  Qa4 {[%clk 0:00:48]} 27. Re2 {[%clk 0:00:56]}  Qxd7 {[%clk 0:00:45]} 0-1


[Site "https://www.chess.com"]